[Event "Titled Tuesday Blitz February 15 Early 2022"]
[White "Reprintsev, Alexander"]
[Black "Golubenko, Valentina"]
[WhiteFideId "14100541"]
[BlackFideId "4501993"]
[WhiteElo "2126"]
[BlackElo "2164"]
[Result "1-0"]
[Round "10"]
[TimeControl "180+1"]
[Date "2022.02.15"]
[WhiteClock "0:00:23"]
[BlackClock "0:00:03"]

1. e4 {[%clk 0:02:53]}  e6 {[%clk 0:02:59]} 2. Qe2 {[%clk 0:02:51]}  b6 {[%clk 0:02:57]} 3. b3 {[%clk 0:02:51]}  Bb7 {[%clk 0:02:57]} 4. Bb2 {[%clk 0:02:50]}  d5 {[%clk 0:02:51]} 5. exd5 {[%clk 0:02:46]}  Bxd5 {[%clk 0:02:50]} 6. Nc3 {[%clk 0:02:46]}  Bb7 {[%clk 0:02:49]} 7. O-O-O {[%clk 0:02:45]}  Nf6 {[%clk 0:02:49]} 8. Nf3 {[%clk 0:02:43]}  Be7 {[%clk 0:02:48]} 9. g4 {[%clk 0:02:42]}  O-O {[%clk 0:02:45]} 10. g5 {[%clk 0:02:41]}  Nd5 {[%clk 0:02:37]} 11. h4 {[%clk 0:02:40]}  Nc6 {[%clk 0:02:07]} 12. Rg1 {[%clk 0:02:34]}  Ncb4 {[%clk 0:02:00]} 13. a3 {[%clk 0:02:29]}  Ba6 {[%clk 0:01:27]} 14. Qe4 {[%clk 0:02:20]}  Nxc3 {[%clk 0:01:09]} 15. Bxc3 {[%clk 0:01:41]}  Na2+ {[%clk 0:01:09]} 16. Kb2 {[%clk 0:01:41]}  Nxc3 {[%clk 0:01:09]} 17. Kxc3 {[%clk 0:01:41]}  Bxf1 {[%clk 0:01:07]} 18. Rgxf1 {[%clk 0:01:40]}  Bxa3 {[%clk 0:01:06]} 19. Ne5 {[%clk 0:01:29]}  c5 {[%clk 0:00:59]} 20. d4 {[%clk 0:01:28]}  Rc8 {[%clk 0:00:55]} 21. d5 {[%clk 0:01:28]}  exd5 {[%clk 0:00:47]} 22. Rxd5 {[%clk 0:01:27]}  Qe7 {[%clk 0:00:45]} 23. Rd7 {[%clk 0:01:13]}  Qe6 {[%clk 0:00:44]} 24. Qd5 {[%clk 0:01:13]}  Qh3+ {[%clk 0:00:33]} 25. Qd3 {[%clk 0:01:09]}  Qxh4 {[%clk 0:00:25]} 26. f4 {[%clk 0:01:04]}  b5 {[%clk 0:00:16]} 27. Qxb5 {[%clk 0:00:54]}  Qh3+ {[%clk 0:00:15]} 28. Qd3 {[%clk 0:00:54]}  Qe6 {[%clk 0:00:11]} 29. Ra1 {[%clk 0:00:47]}  Bb4+ {[%clk 0:00:10]} 30. Kb2 {[%clk 0:00:47]}  f6 {[%clk 0:00:11]} 31. Nc4 {[%clk 0:00:44]}  fxg5 {[%clk 0:00:09]} 32. Raxa7 {[%clk 0:00:43]}  Qf6+ {[%clk 0:00:06]} 33. c3 {[%clk 0:00:43]}  Ra8 {[%clk 0:00:05]} 34. Rxg7+ {[%clk 0:00:42]}  Qxg7 {[%clk 0:00:04]} 35. Rxg7+ {[%clk 0:00:42]}  Kxg7 {[%clk 0:00:04]} 36. cxb4 {[%clk 0:00:42]}  gxf4 {[%clk 0:00:05]} 37. bxc5 {[%clk 0:00:39]}  f3 {[%clk 0:00:05]} 38. Nd2 {[%clk 0:00:30]}  f2 {[%clk 0:00:04]} 39. Qg3+ {[%clk 0:00:30]}  Kh8 {[%clk 0:00:03]} 40. Qe5+ {[%clk 0:00:29]}  Kg8 {[%clk 0:00:03]} 41. c6 {[%clk 0:00:23]} 1-0


[Site "https://www.chess.com"]

[Event "Titled Tuesday Blitz February 15 Early 2022"]
[White "Ronka, Erik"]
[Black "De Souza Sa, Apolo"]
[WhiteFideId "505080"]
[BlackFideId "324225390"]
[WhiteElo "2264"]
[BlackElo "1828"]
[Result "1-0"]
[Round "10"]
[TimeControl "180+1"]
[Date "2022.02.15"]
[WhiteClock "0:00:14"]
[BlackClock "0:00:17"]

1. d4 {[%clk 0:03:00]}  Nf6 {[%clk 0:02:59]} 2. Nf3 {[%clk 0:03:01]}  g6 {[%clk 0:03:00]} 3. g3 {[%clk 0:03:02]}  Bg7 {[%clk 0:03:00]} 4. Bg2 {[%clk 0:03:03]}  O-O {[%clk 0:03:00]} 5. O-O {[%clk 0:03:03]}  d5 {[%clk 0:03:01]} 6. c4 {[%clk 0:03:03]}  dxc4 {[%clk 0:03:01]} 7. Na3 {[%clk 0:03:01]}  c3 {[%clk 0:03:00]} 8. bxc3 {[%clk 0:03:02]}  c5 {[%clk 0:03:01]} 9. Re1 {[%clk 0:02:59]}  Nc6 {[%clk 0:03:01]} 10. e4 {[%clk 0:02:56]}  Bg4 {[%clk 0:02:59]} 11. Bb2 {[%clk 0:02:50]}  Qc7 {[%clk 0:02:46]} 12. h3 {[%clk 0:02:41]}  Bxf3 {[%clk 0:02:44]} 13. Qxf3 {[%clk 0:02:42]}  Rac8 {[%clk 0:02:40]} 14. d5 {[%clk 0:02:09]}  Ne5 {[%clk 0:02:32]} 15. Qe2 {[%clk 0:02:08]}  c4 {[%clk 0:02:30]} 16. Reb1 {[%clk 0:02:05]}  Nd3 {[%clk 0:02:26]} 17. Nb5 {[%clk 0:02:03]}  Qc5 {[%clk 0:02:13]} 18. Nd4 {[%clk 0:02:01]}  Rfe8 {[%clk 0:01:54]} 19. a4 {[%clk 0:01:58]}  Nxb2 {[%clk 0:01:52]} 20. Rxb2 {[%clk 0:01:57]}  e5 {[%clk 0:01:53]} 21. Nc2 {[%clk 0:01:49]}  b6 {[%clk 0:01:49]} 22. Kh2 {[%clk 0:01:46]}  Re7 {[%clk 0:01:42]} 23. Ne3 {[%clk 0:01:46]}  Ne8 {[%clk 0:01:40]} 24. Rb5 {[%clk 0:01:34]}  Qc7 {[%clk 0:01:40]} 25. a5 {[%clk 0:01:33]}  Nd6 {[%clk 0:01:40]} 26. axb6 {[%clk 0:01:32]}  axb6 {[%clk 0:01:39]} 27. Rb4 {[%clk 0:01:31]}  b5 {[%clk 0:01:38]} 28. h4 {[%clk 0:01:23]}  f5 {[%clk 0:01:35]} 29. exf5 {[%clk 0:01:19]}  gxf5 {[%clk 0:01:36]} 30. Bh3 {[%clk 0:01:17]}  Rf8 {[%clk 0:01:33]} 31. Ra6 {[%clk 0:01:15]}  f4 {[%clk 0:01:29]} 32. Rc6 {[%clk 0:00:58]}  Qd8 {[%clk 0:01:23]} 33. Nd1 {[%clk 0:00:50]}  Kh8 {[%clk 0:01:08]} 34. Be6 {[%clk 0:00:41]}  e4 {[%clk 0:01:02]} 35. Rb2 {[%clk 0:00:28]}  Be5 {[%clk 0:00:58]} 36. Qh5 {[%clk 0:00:27]}  Bg7 {[%clk 0:00:36]} 37. Ra2 {[%clk 0:00:24]}  Qe8 {[%clk 0:00:30]} 38. Qg4 {[%clk 0:00:17]}  Be5 {[%clk 0:00:24]} 39. Raa6 {[%clk 0:00:16]}  Qd8 {[%clk 0:00:18]} 40. Qh5 {[%clk 0:00:14]}  Bg7 {[%clk 0:00:17]} 41. Rxd6 {[%clk 0:00:14]} 1-0


[Site "https://www.chess.com"]

[Event "Titled Tuesday Blitz February 15 Early 2022"]
[White "Rosenberg, Evan S"]
[Black "Samarth, J Rao"]
[WhiteFideId "2019299"]
[BlackFideId "46652370"]
[WhiteElo "2331"]
[BlackElo "1514"]
[Result "1-0"]
[Round "10"]
[TimeControl "180+1"]
[Date "2022.02.15"]
[WhiteClock "0:00:33"]
[BlackClock "0:00:02"]

1. Nf3 {[%clk 0:03:00]}  d5 {[%clk 0:01:08]} 2. d4 {[%clk 0:02:58]}  Nf6 {[%clk 0:01:08]} 3. c4 {[%clk 0:02:58]}  e6 {[%clk 0:01:08]} 4. g3 {[%clk 0:02:58]}  Be7 {[%clk 0:01:07]} 5. Bg2 {[%clk 0:02:59]}  O-O {[%clk 0:01:08]} 6. O-O {[%clk 0:02:59]}  dxc4 {[%clk 0:01:08]} 7. Qc2 {[%clk 0:03:00]}  b5 {[%clk 0:01:09]} 8. Bg5 {[%clk 0:02:53]}  Bb7 {[%clk 0:01:07]} 9. Bxf6 {[%clk 0:02:48]}  Bxf6 {[%clk 0:01:08]} 10. Ng5 {[%clk 0:02:48]}  Bxg5 {[%clk 0:01:02]} 11. Bxb7 {[%clk 0:02:48]}  Nd7 {[%clk 0:01:02]} 12. Bxa8 {[%clk 0:02:48]}  Qxa8 {[%clk 0:01:03]} 13. e4 {[%clk 0:02:43]}  c5 {[%clk 0:00:52]} 14. f4 {[%clk 0:02:31]}  Bf6 {[%clk 0:00:50]} 15. e5 {[%clk 0:02:30]}  Be7 {[%clk 0:00:50]} 16. d5 {[%clk 0:02:20]}  Qxd5 {[%clk 0:00:47]} 17. Rd1 {[%clk 0:02:19]}  Qc6 {[%clk 0:00:45]} 18. Qg2 {[%clk 0:02:14]}  Qxg2+ {[%clk 0:00:44]} 19. Kxg2 {[%clk 0:02:14]}  Nb6 {[%clk 0:00:45]} 20. Nc3 {[%clk 0:02:11]}  a6 {[%clk 0:00:44]} 21. a4 {[%clk 0:02:06]}  b4 {[%clk 0:00:44]} 22. Ne4 {[%clk 0:02:06]}  Nd5 {[%clk 0:00:45]} 23. Kf3 {[%clk 0:02:02]}  f5 {[%clk 0:00:34]} 24. exf6 {[%clk 0:01:53]}  gxf6 {[%clk 0:00:34]} 25. Rac1 {[%clk 0:01:49]}  Nb6 {[%clk 0:00:22]} 26. a5 {[%clk 0:01:44]}  Na4 {[%clk 0:00:22]} 27. Rd7 {[%clk 0:01:43]}  Re8 {[%clk 0:00:20]} 28. Rxc4 {[%clk 0:01:28]}  Nxb2 {[%clk 0:00:20]} 29. Rc2 {[%clk 0:01:29]}  Na4 {[%clk 0:00:15]} 30. Rb7 {[%clk 0:01:18]}  f5 {[%clk 0:00:13]} 31. Nd2 {[%clk 0:01:14]}  Kf8 {[%clk 0:00:09]} 32. Nc4 {[%clk 0:01:11]}  Nc3 {[%clk 0:00:06]} 33. Ne5 {[%clk 0:01:04]}  Rd8 {[%clk 0:00:05]} 34. Rxe7 {[%clk 0:00:58]}  Kxe7 {[%clk 0:00:05]} 35. Nc6+ {[%clk 0:00:59]}  Kd7 {[%clk 0:00:02]} 36. Nxd8 {[%clk 0:01:00]}  Kxd8 {[%clk 0:00:02]} 37. Ke3 {[%clk 0:01:00]}  Kc7 {[%clk 0:00:03]} 38. Kd3 {[%clk 0:01:00]}  Kc6 {[%clk 0:00:03]} 39. Kc4 {[%clk 0:00:52]}  Ne4 {[%clk 0:00:03]} 40. Re2 {[%clk 0:00:46]}  Nd6+ {[%clk 0:00:04]} 41. Kb3 {[%clk 0:00:46]}  Kd5 {[%clk 0:00:04]} 42. Rd2+ {[%clk 0:00:45]}  Kc6 {[%clk 0:00:04]} 43. h3 {[%clk 0:00:44]}  Ne4 {[%clk 0:00:04]} 44. Rd8 {[%clk 0:00:42]}  Nxg3 {[%clk 0:00:03]} 45. Rb8 {[%clk 0:00:39]}  Ne2 {[%clk 0:00:03]} 46. Rb6+ {[%clk 0:00:39]}  Kd5 {[%clk 0:00:03]} 47. Rxa6 {[%clk 0:00:39]}  Nxf4 {[%clk 0:00:03]} 48. Ra8 {[%clk 0:00:38]}  Nd3 {[%clk 0:00:03]} 49. a6 {[%clk 0:00:37]}  c4+ {[%clk 0:00:03]} 50. Kc2 {[%clk 0:00:38]}  b3+ {[%clk 0:00:03]} 51. Kc3 {[%clk 0:00:37]}  b2 {[%clk 0:00:03]} 52. Kc2 {[%clk 0:00:36]}  Kc5 {[%clk 0:00:03]} 53. Rb8 {[%clk 0:00:35]}  Ne5 {[%clk 0:00:02]} 54. a7 {[%clk 0:00:34]}  Nd3 {[%clk 0:00:02]} 55. a8=Q {[%clk 0:00:33]} 1-0


[Site "https://www.chess.com"]

[Event "Titled Tuesday Blitz February 15 Early 2022"]
[White "Samaganova, Aleksandra"]
[Black "Buscar, Michael"]
[WhiteFideId "13800221"]
[BlackFideId "2603616"]
[WhiteElo "1859"]
[BlackElo "2010"]
[Result "1-0"]
[Round "10"]
[TimeControl "180+1"]
[Date "2022.02.15"]
[WhiteClock "0:00:05"]
[BlackClock "0:00:13"]

1. c4 {[%clk 0:03:00]}  e5 {[%clk 0:02:49]} 2. Nc3 {[%clk 0:03:00]}  Nf6 {[%clk 0:02:49]} 3. Nf3 {[%clk 0:03:00]}  Nc6 {[%clk 0:02:45]} 4. a3 {[%clk 0:03:00]}  d5 {[%clk 0:02:44]} 5. cxd5 {[%clk 0:02:59]}  Nxd5 {[%clk 0:02:45]} 6. Qc2 {[%clk 0:03:00]}  Be6 {[%clk 0:02:37]} 7. e3 {[%clk 0:02:59]}  Be7 {[%clk 0:02:37]} 8. b4 {[%clk 0:02:59]}  a6 {[%clk 0:02:35]} 9. Bb2 {[%clk 0:02:58]}  O-O {[%clk 0:02:33]} 10. Be2 {[%clk 0:02:56]}  f5 {[%clk 0:02:33]} 11. d3 {[%clk 0:02:41]}  Bf6 {[%clk 0:02:33]} 12. Nxd5 {[%clk 0:02:34]}  Bxd5 {[%clk 0:02:25]} 13. e4 {[%clk 0:02:34]}  Be6 {[%clk 0:02:22]} 14. Rd1 {[%clk 0:02:00]}  Nd4 {[%clk 0:02:20]} 15. Bxd4 {[%clk 0:01:43]}  exd4 {[%clk 0:02:18]} 16. O-O {[%clk 0:01:36]}  a5 {[%clk 0:02:16]} 17. b5 {[%clk 0:01:34]}  a4 {[%clk 0:02:13]} 18. Rc1 {[%clk 0:01:34]}  Rf7 {[%clk 0:02:03]} 19. exf5 {[%clk 0:01:21]}  Bxf5 {[%clk 0:02:01]} 20. Nd2 {[%clk 0:01:18]}  Bg5 {[%clk 0:01:57]} 21. Rb1 {[%clk 0:00:50]}  Bxd2 {[%clk 0:01:41]} 22. Qxd2 {[%clk 0:00:50]}  Qe7 {[%clk 0:01:41]} 23. Bf3 {[%clk 0:00:45]}  Qxa3 {[%clk 0:01:36]} 24. Bd5 {[%clk 0:00:36]}  Qxd3 {[%clk 0:01:32]} 25. Qa2 {[%clk 0:00:32]}  Rf8 {[%clk 0:01:29]} 26. Rbd1 {[%clk 0:00:31]}  Qxb5 {[%clk 0:01:28]} 27. Bxf7+ {[%clk 0:00:27]}  Rxf7 {[%clk 0:01:28]} 28. Rxd4 {[%clk 0:00:28]}  Qb3 {[%clk 0:01:18]} 29. Qd2 {[%clk 0:00:22]}  Rf8 {[%clk 0:01:09]} 30. Rb4 {[%clk 0:00:14]}  Qd3 {[%clk 0:00:52]} 31. Qa2+ {[%clk 0:00:12]}  Kh8 {[%clk 0:00:50]} 32. Rxa4 {[%clk 0:00:12]}  Bd7 {[%clk 0:00:42]} 33. Ra8 {[%clk 0:00:11]}  Qf5 {[%clk 0:00:37]} 34. Rxf8+ {[%clk 0:00:09]}  Qxf8 {[%clk 0:00:37]} 35. Rd1 {[%clk 0:00:08]}  Bc6 {[%clk 0:00:32]} 36. Qa5 {[%clk 0:00:07]}  Qc8 {[%clk 0:00:28]} 37. Qg5 {[%clk 0:00:05]}  Bd7 {[%clk 0:00:19]} 38. Qe7 {[%clk 0:00:05]}  Qe8 {[%clk 0:00:15]} 39. Qxe8+ {[%clk 0:00:05]}  Bxe8 {[%clk 0:00:13]} 40. Rd8 {[%clk 0:00:05]} 1-0


[Site "https://www.chess.com"]

[Event "Titled Tuesday Blitz February 15 Early 2022"]
[White "Sanal, Vahap"]
[Black "Viani Antonio Dcunha"]
[WhiteFideId "6300545"]
[BlackFideId "5027330"]
[WhiteElo "2603"]
[BlackElo "2366"]
[Result "0-1"]
[Round "10"]
[TimeControl "180+1"]
[Date "2022.02.15"]
[WhiteClock "0:00:20"]
[BlackClock "0:00:26"]

1. d4 {[%clk 0:02:59]}  Nf6 {[%clk 0:02:59]} 2. Nf3 {[%clk 0:03:00]}  g6 {[%clk 0:02:59]} 3. g3 {[%clk 0:03:01]}  Bg7 {[%clk 0:02:59]} 4. Bg2 {[%clk 0:03:01]}  O-O {[%clk 0:02:59]} 5. O-O {[%clk 0:03:02]}  d6 {[%clk 0:02:59]} 6. c4 {[%clk 0:03:03]}  Nc6 {[%clk 0:02:59]} 7. Nc3 {[%clk 0:03:03]}  a6 {[%clk 0:02:58]} 8. Rb1 {[%clk 0:03:01]}  Bf5 {[%clk 0:02:57]} 9. Ra1 {[%clk 0:03:00]}  Rb8 {[%clk 0:02:51]} 10. Re1 {[%clk 0:02:59]}  Ne4 {[%clk 0:02:46]} 11. Nd5 {[%clk 0:02:56]}  b5 {[%clk 0:02:38]} 12. Ne3 {[%clk 0:02:47]}  bxc4 {[%clk 0:02:33]} 13. Nxf5 {[%clk 0:02:47]}  gxf5 {[%clk 0:02:32]} 14. Nh4 {[%clk 0:02:28]}  e6 {[%clk 0:02:23]} 15. d5 {[%clk 0:02:23]}  Ne7 {[%clk 0:02:18]} 16. dxe6 {[%clk 0:02:21]}  fxe6 {[%clk 0:02:18]} 17. Qa4 {[%clk 0:02:19]}  d5 {[%clk 0:02:08]} 18. Qxa6 {[%clk 0:01:54]}  Qd6 {[%clk 0:02:05]} 19. Qa4 {[%clk 0:01:42]}  Bxb2 {[%clk 0:02:00]} 20. Rb1 {[%clk 0:01:00]}  Bd4 {[%clk 0:01:19]} 21. Bxe4 {[%clk 0:00:51]}  Bxf2+ {[%clk 0:01:16]} 22. Kxf2 {[%clk 0:00:33]}  fxe4+ {[%clk 0:01:14]} 23. Kg2 {[%clk 0:00:34]}  Rxb1 {[%clk 0:01:08]} 24. Ba3 {[%clk 0:00:34]}  Qb6 {[%clk 0:00:52]} 25. Bxe7 {[%clk 0:00:34]}  Qf2+ {[%clk 0:00:37]} 26. Kh3 {[%clk 0:00:34]}  Rxe1 {[%clk 0:00:37]} 27. Bxf8 {[%clk 0:00:32]}  Qxf8 {[%clk 0:00:37]} 28. Qd7 {[%clk 0:00:32]}  Qf1+ {[%clk 0:00:28]} 29. Kg4 {[%clk 0:00:24]}  Qf7 {[%clk 0:00:26]} 30. Qd8+ {[%clk 0:00:20]}  Qf8 {[%clk 0:00:26]} 0-1


[Site "https://www.chess.com"]

[Event "Titled Tuesday Blitz February 15 Early 2022"]
[White "Shton, Roman"]
[Black "Sinitsina, Anastassia"]
[WhiteFideId "14137461"]
[BlackFideId "4504640"]
[WhiteElo "2038"]
[BlackElo "2144"]
[Result "1-0"]
[Round "10"]
[TimeControl "180+1"]
[Date "2022.02.15"]
[WhiteClock "0:00:43"]
[BlackClock "0:00:15"]

1. d4 {[%clk 0:03:00]}  Nf6 {[%clk 0:02:59]} 2. Nf3 {[%clk 0:03:00]}  g6 {[%clk 0:03:00]} 3. c4 {[%clk 0:02:59]}  Bg7 {[%clk 0:03:00]} 4. Nc3 {[%clk 0:03:00]}  O-O {[%clk 0:03:01]} 5. Bg5 {[%clk 0:03:00]}  h6 {[%clk 0:02:58]} 6. Bh4 {[%clk 0:03:00]}  d6 {[%clk 0:02:58]} 7. e3 {[%clk 0:03:00]}  c5 {[%clk 0:02:56]} 8. d5 {[%clk 0:03:00]}  e6 {[%clk 0:02:55]} 9. Be2 {[%clk 0:02:57]}  exd5 {[%clk 0:02:54]} 10. cxd5 {[%clk 0:02:57]}  a6 {[%clk 0:02:52]} 11. a4 {[%clk 0:02:57]}  Nbd7 {[%clk 0:02:52]} 12. Bg3 {[%clk 0:02:55]}  Qe7 {[%clk 0:02:49]} 13. O-O {[%clk 0:02:54]}  Ng4 {[%clk 0:02:45]} 14. Nd2 {[%clk 0:02:49]}  Nge5 {[%clk 0:02:43]} 15. Nc4 {[%clk 0:02:47]}  Nxc4 {[%clk 0:02:42]} 16. Bxc4 {[%clk 0:02:48]}  Ne5 {[%clk 0:02:42]} 17. Be2 {[%clk 0:02:46]}  h5 {[%clk 0:02:27]} 18. h3 {[%clk 0:02:39]}  f5 {[%clk 0:02:03]} 19. a5 {[%clk 0:02:21]}  Bd7 {[%clk 0:02:03]} 20. Qb3 {[%clk 0:02:17]}  Rfb8 {[%clk 0:02:02]} 21. Na4 {[%clk 0:02:13]}  Bxa4 {[%clk 0:01:58]} 22. Rxa4 {[%clk 0:02:14]}  Qc7 {[%clk 0:01:56]} 23. Rfa1 {[%clk 0:01:51]}  b5 {[%clk 0:01:55]} 24. axb6 {[%clk 0:01:51]}  Rxb6 {[%clk 0:01:55]} 25. Qc2 {[%clk 0:01:49]}  Rxb2 {[%clk 0:01:51]} 26. Qd1 {[%clk 0:01:46]}  a5 {[%clk 0:01:43]} 27. e4 {[%clk 0:01:37]}  fxe4 {[%clk 0:01:28]} 28. Rxe4 {[%clk 0:01:38]}  Rb4 {[%clk 0:01:24]} 29. Ra4 {[%clk 0:01:21]}  Rxe4 {[%clk 0:01:21]} 30. Rxe4 {[%clk 0:01:22]}  Qd7 {[%clk 0:01:16]} 31. f4 {[%clk 0:01:14]}  Nf7 {[%clk 0:01:12]} 32. Re6 {[%clk 0:01:13]}  Bd4+ {[%clk 0:00:51]} 33. Kh2 {[%clk 0:01:11]}  Nh8 {[%clk 0:00:51]} 34. Bd3 {[%clk 0:01:06]}  Kg7 {[%clk 0:00:44]} 35. f5 {[%clk 0:01:00]}  gxf5 {[%clk 0:00:26]} 36. Qxh5 {[%clk 0:00:59]}  Bf6 {[%clk 0:00:18]} 37. Qxf5 {[%clk 0:00:53]}  Qf7 {[%clk 0:00:15]} 38. Qh7+ {[%clk 0:00:43]} 1-0


[Site "https://www.chess.com"]

[Event "Titled Tuesday Blitz February 15 Early 2022"]
[White "Shuvalova, Polina"]
[Black "Galyas, Miklos"]
[WhiteFideId "24171760"]
[BlackFideId "707244"]
[WhiteElo "2355"]
[BlackElo "2409"]
[Result "1-0"]
[Round "10"]
[TimeControl "180+1"]
[Date "2022.02.15"]
[WhiteClock "0:00:09"]
[BlackClock "0:00:12"]

1. e4 {[%clk 0:03:00]}  d5 {[%clk 0:02:05]} 2. exd5 {[%clk 0:02:09]}  Qxd5 {[%clk 0:02:03]} 3. Nc3 {[%clk 0:02:08]}  Qd6 {[%clk 0:02:03]} 4. Nf3 {[%clk 0:02:08]}  Nf6 {[%clk 0:02:03]} 5. d4 {[%clk 0:02:09]}  c6 {[%clk 0:02:03]} 6. Be2 {[%clk 0:02:09]}  Bg4 {[%clk 0:02:03]} 7. O-O {[%clk 0:02:09]}  e6 {[%clk 0:02:03]} 8. h3 {[%clk 0:02:10]}  Bh5 {[%clk 0:02:02]} 9. Bg5 {[%clk 0:02:10]}  Nbd7 {[%clk 0:02:02]} 10. Bh4 {[%clk 0:02:07]}  Be7 {[%clk 0:02:02]} 11. Bg3 {[%clk 0:02:07]}  Qb4 {[%clk 0:02:02]} 12. a3 {[%clk 0:02:06]}  Qa5 {[%clk 0:01:59]} 13. Qd2 {[%clk 0:02:03]}  O-O {[%clk 0:01:59]} 14. Rad1 {[%clk 0:02:03]}  Rad8 {[%clk 0:01:54]} 15. Rfe1 {[%clk 0:02:00]}  Rfe8 {[%clk 0:01:51]} 16. Qc1 {[%clk 0:01:52]}  a6 {[%clk 0:01:46]} 17. Nb1 {[%clk 0:01:39]}  Bf8 {[%clk 0:01:44]} 18. c4 {[%clk 0:01:39]}  c5 {[%clk 0:01:41]} 19. dxc5 {[%clk 0:01:37]}  Qxc5 {[%clk 0:01:41]} 20. b4 {[%clk 0:01:35]}  Qc8 {[%clk 0:01:41]} 21. c5 {[%clk 0:01:33]}  Nd5 {[%clk 0:01:40]} 22. Nc3 {[%clk 0:01:30]}  N7f6 {[%clk 0:01:39]} 23. Nxd5 {[%clk 0:01:25]}  Nxd5 {[%clk 0:01:39]} 24. Ne5 {[%clk 0:01:24]}  Bxe2 {[%clk 0:01:38]} 25. Rxe2 {[%clk 0:01:24]}  f6 {[%clk 0:01:35]} 26. Nc4 {[%clk 0:01:24]}  e5 {[%clk 0:01:31]} 27. Rxd5 {[%clk 0:01:20]}  Rxd5 {[%clk 0:01:30]} 28. Nb6 {[%clk 0:01:20]}  Qe6 {[%clk 0:01:31]} 29. Nxd5 {[%clk 0:01:19]}  Qxd5 {[%clk 0:01:31]} 30. Rd2 {[%clk 0:01:19]}  Qb3 {[%clk 0:01:29]} 31. Rd7 {[%clk 0:01:16]}  a5 {[%clk 0:01:12]} 32. Rxb7 {[%clk 0:00:56]}  Rd8 {[%clk 0:01:10]} 33. Qe3 {[%clk 0:00:53]}  Rd1+ {[%clk 0:01:09]} 34. Kh2 {[%clk 0:00:54]}  Qb1 {[%clk 0:01:10]} 35. Bh4 {[%clk 0:00:47]}  Rh1+ {[%clk 0:01:09]} 36. Kg3 {[%clk 0:00:47]}  Rd1 {[%clk 0:01:06]} 37. f3 {[%clk 0:00:44]}  Rd3 {[%clk 0:01:04]} 38. Qe4 {[%clk 0:00:42]}  h6 {[%clk 0:01:03]} 39. c6 {[%clk 0:00:41]}  Qd1 {[%clk 0:00:32]} 40. c7 {[%clk 0:00:37]}  Rc3 {[%clk 0:00:32]} 41. b5 {[%clk 0:00:26]}  Rc2 {[%clk 0:00:27]} 42. Bxf6 {[%clk 0:00:13]}  Qd2 {[%clk 0:00:23]} 43. f4 {[%clk 0:00:09]}  Qf2+ {[%clk 0:00:20]} 44. Kh2 {[%clk 0:00:09]}  gxf6 {[%clk 0:00:20]} 45. c8=Q {[%clk 0:00:09]}  Rxc8 {[%clk 0:00:12]} 46. Qh7# {[%clk 0:00:09]} 1-0


[Site "https://www.chess.com"]

[Event "Titled Tuesday Blitz February 15 Early 2022"]
[White "Szpar, Milosz"]
[Black "Annaberdiyev, Babageldi"]
[WhiteFideId "1184989"]
[BlackFideId "14000385"]
[WhiteElo "2447"]
[BlackElo "2332"]
[Result "1/2-1/2"]
[Round "10"]
[TimeControl "180+1"]
[Date "2022.02.15"]
[WhiteClock "0:00:05"]
[BlackClock "0:00:17"]

1. e4 {[%clk 0:03:00]}  c5 {[%clk 0:02:58]} 2. Nf3 {[%clk 0:03:00]}  d6 {[%clk 0:02:58]} 3. d4 {[%clk 0:03:00]}  cxd4 {[%clk 0:02:59]} 4. Nxd4 {[%clk 0:03:00]}  Nf6 {[%clk 0:02:57]} 5. Nc3 {[%clk 0:03:01]}  g6 {[%clk 0:02:56]} 6. f3 {[%clk 0:02:56]}  Bg7 {[%clk 0:02:56]} 7. Be3 {[%clk 0:02:56]}  O-O {[%clk 0:02:57]} 8. Qd2 {[%clk 0:02:55]}  Nc6 {[%clk 0:02:58]} 9. O-O-O {[%clk 0:02:55]}  d5 {[%clk 0:02:57]} 10. Kb1 {[%clk 0:02:49]}  Nxd4 {[%clk 0:02:54]} 11. e5 {[%clk 0:02:44]}  Nf5 {[%clk 0:02:54]} 12. exf6 {[%clk 0:02:38]}  exf6 {[%clk 0:02:55]} 13. Bc5 {[%clk 0:02:31]}  d4 {[%clk 0:02:50]} 14. Nb5 {[%clk 0:02:21]}  Bh6 {[%clk 0:02:32]} 15. Qb4 {[%clk 0:02:13]}  a5 {[%clk 0:02:32]} 16. Qa3 {[%clk 0:02:11]}  Re8 {[%clk 0:02:29]} 17. Bc4 {[%clk 0:02:02]}  Be6 {[%clk 0:02:26]} 18. Bxe6 {[%clk 0:01:57]}  Rxe6 {[%clk 0:02:27]} 19. g4 {[%clk 0:01:47]}  Ne3 {[%clk 0:02:25]} 20. Rxd4 {[%clk 0:01:47]}  Qc8 {[%clk 0:02:23]} 21. Rc1 {[%clk 0:00:36]}  f5 {[%clk 0:02:11]} 22. Nd6 {[%clk 0:00:25]}  Qc6 {[%clk 0:01:58]} 23. gxf5 {[%clk 0:00:25]}  Re5 {[%clk 0:01:48]} 24. fxg6 {[%clk 0:00:16]}  hxg6 {[%clk 0:01:49]} 25. Ne4 {[%clk 0:00:04]}  a4 {[%clk 0:01:43]} 26. Rd6 {[%clk 0:00:03]}  Rxc5 {[%clk 0:01:22]} 27. Qxc5 {[%clk 0:00:02]}  Qxc5 {[%clk 0:01:16]} 28. Nxc5 {[%clk 0:00:03]}  Nc4 {[%clk 0:01:16]} 29. Rd7 {[%clk 0:00:04]}  Bxc1 {[%clk 0:01:09]} 30. Kxc1 {[%clk 0:00:04]}  b6 {[%clk 0:01:09]} 31. Ne4 {[%clk 0:00:03]}  a3 {[%clk 0:01:02]} 32. b3 {[%clk 0:00:04]}  Ne5 {[%clk 0:01:00]} 33. Rb7 {[%clk 0:00:04]}  Nxf3 {[%clk 0:00:58]} 34. Nd6 {[%clk 0:00:04]}  Ne5 {[%clk 0:00:54]} 35. Rxb6 {[%clk 0:00:04]}  Kf8 {[%clk 0:00:51]} 36. c4 {[%clk 0:00:05]}  Ke7 {[%clk 0:00:48]} 37. Nb5 {[%clk 0:00:05]}  Rh8 {[%clk 0:00:44]} 38. Nxa3 {[%clk 0:00:05]}  Rxh2 {[%clk 0:00:42]} 39. c5 {[%clk 0:00:05]}  Nd3+ {[%clk 0:00:39]} 40. Kb1 {[%clk 0:00:05]}  Nxc5 {[%clk 0:00:40]} 41. Nc4 {[%clk 0:00:04]}  Re2 {[%clk 0:00:26]} 42. a4 {[%clk 0:00:04]}  Ne4 {[%clk 0:00:23]} 43. a5 {[%clk 0:00:03]}  Nc3+ {[%clk 0:00:14]} 44. Kc1 {[%clk 0:00:03]}  Na2+ {[%clk 0:00:15]} 45. Kd1 {[%clk 0:00:04]}  Nc3+ {[%clk 0:00:16]} 46. Kc1 {[%clk 0:00:05]}  Na2+ {[%clk 0:00:16]} 47. Kd1 {[%clk 0:00:05]}  Nc3+ {[%clk 0:00:17]} 48. Kc1 {[%clk 0:00:05]} 1/2-1/2


[Site "https://www.chess.com"]